fUST/lending_fUST_20240120
["ID","MTS","AMOUNT","RATE_DAILY","PERIOD"]
[312266100,1705725043284,-355.26030762,0.00032876,7]
[312266102,1705725043293,-500.0,0.00032876,7]
[312266103,1705725043303,-450.0,0.00032876,7]
[312266104,1705725043312,-500.0,0.00032876,7]
[312266105,1705725043322,-500.0,0.00032876,7]
[312266106,1705725043331,-500.0,0.00032876,7]
[312266107,1705725043341,-450.0,0.00032876,7]
[312266108,1705725043350,-250.46393158,0.00032876,7]
[312266109,1705725043360,-250.0,0.00032876,7]
[312266110,1705725043370,-500.0,0.00032876,7]
[312266111,1705725043379,-575.43384602,0.00032876,7]
[312266112,1705725043389,-500.0,0.00032876,7]
[312266114,1705725043398,-500.0,0.00032876,7]
[312266115,1705725043407,-500.0,0.00032876,7]
[312266116,1705725043417,-500.0,0.00032876,7]
[312266117,1705725043425,-500.0,0.00032876,7]
[312266118,1705725043434,-500.0,0.00032876,7]
[312266119,1705725043443,-500.0,0.00032876,7]
[312266120,1705725043455,-500.0,0.00032876,7]
[312266121,1705725043464,-636.56140376,0.00032876,7]
[312266122,1705725043474,-500.0,0.00032876,7]
[312266123,1705725043483,-500.0,0.00032876,7]
[312266124,1705725043492,-500.0,0.00032876,7]
[312266125,1705725043501,-500.0,0.00032876,7]
[312266126,1705725043510,-297.20129338,0.00032876,7]
[312266127,1705725043519,-500.0,0.00032876,7]
[312266128,1705725043528,-500.0,0.00032876,7]
[312266129,1705725043537,-619.6477416,0.00032876,7]
[312266130,1705725043547,-619.6477416,0.00032876,7]
[312266131,1705725043556,-619.6477416,0.00032876,7]
[312266132,1705725043565,-619.6477416,0.00032876,7]
[312266134,1705725043575,-619.6477416,0.00032876,7]
[312266135,1705725043584,-500.0,0.00032876,7]
[312266137,1705725043593,-500.0,0.00032876,7]
[312266139,1705725043602,-619.6477416,0.00032876,7]
[312266141,1705725043611,-500.0,0.00032876,7]
[312266142,1705725043620,-619.6477416,0.00032876,7]
[312266144,1705725043629,-619.6477416,0.00032876,7]
[312266146,1705725043639,-402.04266655,0.00032876,7]
[312266148,1705725043648,-619.6477416,0.00032876,7]
[312266150,1705725043657,-619.6477416,0.00032876,7]
[312266151,1705725043666,-619.6477416,0.00032876,7]
[312266152,1705725043675,-619.6477416,0.00032876,7]
[312266153,1705725043684,-619.6477416,0.00032876,7]
[312266154,1705725043693,-619.6477416,0.00032876,7]
[312266155,1705725043706,-619.6477416,0.00032876,7]
[312266157,1705725043715,-500.0,0.00032876,7]
[312266159,1705725043724,-500.0,0.00032876,7]
[312266160,1705725043734,-190.71493339,0.00032876,7]
[312266162,1705725043743,-500.0,0.00032876,7]
[312266164,1705725043752,-595.89295232,0.00032876,7]
[312266166,1705725043762,-250.0,0.00032876,7]
[312266168,1705725043771,-6763.78500734,0.00033,4]
[312266169,1705725043781,-151.0,0.00033067,2]
[312266171,1705725043790,-160.139618,0.00033425,2]
[312266173,1705725043800,-620.00010376,0.00033694,2]
[312266174,1705725043809,-1500.0,0.000338,2]
[312266176,1705725043819,-150.0,0.000338,7]
[312266178,1705725043829,-155.19377045,0.00033893,4]
[312266180,1705725043840,-155.40876978,0.00033895,4]
[312266182,1705725043849,-155.32849742,0.00033895,4]
[312266183,1705725043859,-260.68598296,0.00033895,4]
[312266185,1705725043869,-338.3898012,0.00033999,7]
[312266187,1705725043879,-225.58896868,0.00033999,7]
[312266189,1705725043888,-500.0,0.00033999,7]
[312266191,1705725043898,-623.91540375,0.00033999,7]
[312266192,1705725043908,-520.00077516,0.00033999,7]
[312266193,1705725043918,-194.7398792,0.00033999,7]
[312266194,1705725043928,-500.0,0.00033999,7]
[312266195,1705725043940,-375.58103362,0.00033999,7]
[312266196,1705725043952,-25184.0463818,0.00034,2]
[312266197,1705725043961,-26542.80622387,0.00034,2]
[312266198,1705725043972,-151.0,0.00034,2]
[312266199,1705725043982,-153.381924,0.00034,2]
[312266200,1705725043992,-2212.680224,0.00034,2]
[312266201,1705725044001,-2212.680224,0.00034,2]
[312266202,1705725044012,-160.0,0.00034012,7]
[312266203,1705725044022,-160.0,0.00034201,8]
[312266204,1705725044032,-150.0,0.00034236,2]
[312266205,1705725044042,-500.0,0.00034246,7]
[312266206,1705725044052,-160.0,0.00034391,9]
[312266207,1705725044061,-48356.8069719,0.00034419,2]
[312266208,1705725044072,-190.55418585,0.00034462,2]
[312266209,1705725044082,-200.0,0.00034519,15]
[312266210,1705725044092,-200.0,0.00034519,15]
[312266211,1705725044102,-200.0,0.00034519,15]
[312266212,1705725044111,-200.0,0.00034519,15]
[312266213,1705725044121,-200.0,0.00034519,15]
[312266214,1705725044131,-200.0,0.00034519,15]
[312266215,1705725044141,-200.0,0.00034519,15]
[312266216,1705725044151,-200.0,0.00034519,15]
[312266217,1705725044161,-200.0,0.00034519,15]
[312266218,1705725044171,-308.0,0.00034519,15]
[312266219,1705725044181,-160.0,0.0003458,10]
[312266220,1705725044191,-157.915106,0.0003474,2]
[312266221,1705725044204,-160.0,0.0003477,11]
[312266222,1705725044213,-151.0,0.0003477,2]
[312266223,1705725044223,-151.40120357,0.00034839,2]
[312266224,1705725044232,-160.0,0.00034959,12]
[312266225,1705725044241,-154.86062544,0.00035,4]
[312266226,1705725044250,-591.76162003,0.00035,2]
[312266227,1705725044259,-154.86062544,0.00035,4]
[312266228,1705725044269,-2087.28272011,0.00035,4]
[312266229,1705725044278,-5000.0,0.00035,2]
[312266230,1705725044288,-3119.50448181,0.00035,20]
[312266231,1705725044297,-372.03514151,0.00035,45]
[312266232,1705725044306,-21664.126102,0.00035,30]
[312266233,1705725044316,-770.0,0.00035,2]
[312266234,1705725044325,-398.113753,0.00035,2]
[312266235,1705725044334,-398.113753,0.00035,2]
[312266236,1705725044344,-151.0,0.00035,2]
[312266237,1705725044353,-151.0,0.00035,2]
[312266238,1705725044363,-151.0,0.00035,2]
[312266239,1705725044372,-511.785757,0.00035,3]
[312266240,1705725044381,-201.67735052,0.00035,2]
[312266241,1705725044390,-7642.37434,0.00035,2]
[312266242,1705725044400,-7642.37434,0.00035,2]
[312266243,1705725044409,-151.0,0.00035,2]
[312266244,1705725044419,-65875.72020649,0.00035,2]
[312266245,1705725044428,-160.139618,0.00035068,2]
[312266246,1705725044437,-160.0,0.00035148,13]
[312266247,1705725044446,-160.0,0.00035338,14]
[312266248,1705725044460,-50000.0,0.00035369,7]
[312266249,1705725044469,-2212.680224,0.00035369,2]
[312266250,1705725044478,-2212.680224,0.00035369,2]
[312266251,1705725044486,-50000.0,0.000354,7]
[312266252,1705725044495,-151.0,0.000354,2]
[312266253,1705725044505,-398.113753,0.00035411,2]
[312266254,1705725044514,-398.113753,0.00035411,2]
[312266255,1705725044522,-50000.0,0.00035411,7]
[312266256,1705725044532,-27820.10999385,0.000355,14]
[312266257,1705725044602,-2357.88407698,0.000355,14]
[312266258,1705725044611,-160.0,0.00035527,15]
[312266259,1705725044620,-750.0,0.00035616,7]
[312266260,1705725044630,-349.152399,0.00035616,120]
[312266261,1705725044639,-201.67735052,0.000357,2]
[312266262,1705725044648,-160.0,0.00035717,16]
[312266263,1705725044657,-200.0,0.000358,2]
[312266264,1705725044667,-255.61299622,0.00035821,2]
[312266265,1705725044676,-160.0,0.00035906,17]
[312266266,1705725044686,-285193.1318375,0.00036,4]
[312266267,1705725044695,-500.0,0.00036,30]
[312266268,1705725044706,-269.04168,0.00036,2]
[312266269,1705725044715,-398.113753,0.00036,2]
[312266270,1705725044724,-398.113753,0.00036,2]
[312266271,1705725044734,-151.0,0.00036,2]
[312266272,1705725044743,-151.0,0.00036,2]
[312266273,1705725044753,-2212.680224,0.00036,2]
[312266274,1705725044762,-2212.680224,0.00036,2]
[312266275,1705725044772,-7642.37434,0.00036,2]
[312266276,1705725044781,-7642.37434,0.00036,2]
[312266277,1705725044791,-151.0,0.00036,2]
[312266278,1705725044801,-160.0,0.00036095,18]
[312266279,1705725044810,-443.88838917,0.00036199,2]
[312266280,1705725044820,-8978.10794925,0.00036213,7]
[312266281,1705725044829,-154.993163,0.00036238,2]
[312266282,1705725044839,-156.965517,0.00036238,2]
[312266283,1705725044848,-500.0,0.0003625,30]
[312266284,1705725044858,-1600.40172029,0.0003627,2]
[312266285,1705725044867,-9339.42874508,0.00036281,7]
[312266286,1705725044878,-165.62359769,0.00036281,4]
[312266287,1705725044888,-160.0,0.00036285,19]
[312266288,1705725044897,-455.00477174,0.00036347,2]
[312266289,1705725044907,-344.94374575,0.00036347,2]
[312266290,1705725044918,-1000.0,0.00036347,10]
[312266291,1705725044929,-720.11036777,0.00036347,2]
[312266292,1705725044941,-677.66037757,0.00036347,2]
[312266293,1705725044952,-44999.999999,0.000364,10]
[312266294,1705725044961,-201.67735052,0.000364,2]
[312266295,1705725044971,-151.0,0.00036472,4]
[312266296,1705725044980,-160.0,0.00036474,20]
[312266297,1705725044989,-5000.0,0.00036631,7]
[312266298,1705725045000,-160.0,0.00036664,21]
[312266299,1705725045011,-5000.0,0.00036693,7]
[312266300,1705725045021,-160.139618,0.00036712,2]
[312266301,1705725045030,-5000.0,0.00036715,7]
[312266302,1705725045039,-5000.0,0.00036731,7]
[312266303,1705725045048,-5000.0,0.00036768,7]
[312266304,1705725045057,-160.0,0.00036853,22]
[312266305,1705725045066,-1000.0,0.00036986,7]
[312266306,1705725045075,-150.89807138,0.00036999,2]
[312266307,1705725045084,-155.50743149,0.00037,4]
[312266308,1705725045093,-150.0,0.00037,30]
[312266309,1705725045103,-157.915106,0.00037041,2]
[312266310,1705725045112,-160.0,0.00037042,23]
[312266311,1705725045121,-242.01282063,0.000371,5]
[312266312,1705725045130,-301.0,0.0003718,2]
[312266313,1705725045139,-300.0,0.0003718,2]
[312266314,1705725045149,-50000.0,0.00037197,7]
[312266315,1705725045158,-2064.70643978,0.00037199,2]
[312266316,1705725045167,-150.0,0.000372,30]
[312266317,1705725045177,-160.0,0.00037232,24]
[312266318,1705725045267,-150.0,0.000374,30]
[312266319,1705725045287,-160.0,0.00037421,25]
[312266320,1705725045296,-2880.38684132,0.0003759,2]
[312266321,1705725045305,-1000.0,0.0003759,10]
[312266322,1705725045314,-150.0,0.000376,30]
[312266323,1705725045323,-160.0,0.00037611,26]
[312266324,1705725045332,-160.0,0.000378,27]
[312266325,1705725045342,-150.0,0.000378,30]
[312266326,1705725045352,-242.01282063,0.000378,5]
[312266327,1705725045361,-200.0,0.00037971,15]
[312266328,1705725045371,-200.0,0.00037971,15]
[312266329,1705725045380,-200.0,0.00037971,15]
[312266330,1705725045389,-200.0,0.00037971,15]
[312266331,1705725045398,-200.0,0.00037971,15]
[312266332,1705725045408,-200.0,0.00037971,15]
[312266333,1705725045417,-200.0,0.00037971,15]
[312266334,1705725045427,-200.0,0.00037971,15]
[312266335,1705725045436,-200.0,0.00037971,15]
[312266336,1705725045445,-200.0,0.00037971,15]
[312266337,1705725045456,-200.0,0.00037971,15]
[312266338,1705725045466,-200.0,0.00037971,15]
[312266339,1705725045475,-200.0,0.00037971,15]
[312266340,1705725045484,-351.0,0.00037971,15]
[312266341,1705725045493,-160.0,0.00037989,28]
[312266342,1705725045502,-150.0,0.00038,30]
[312266343,1705725045511,-2276.39654398,0.00038,4]
[312266344,1705725045520,-1786.1851102,0.00038,4]
[312266345,1705725045529,-2139.23248446,0.00038,4]
[312266346,1705725045538,-200.0,0.00038,9]
[312266347,1705725045547,-156.965517,0.0003805,2]
[312266348,1705725045556,-1000.0,0.00038091,10]
[312266349,1705725045565,-151.0,0.00038175,4]
[312266350,1705725045575,-160.0,0.00038179,29]
[312266351,1705725045584,-150.0,0.000382,30]
[312266352,1705725045593,-1250.0,0.00038356,7]
[312266353,1705725045603,-160.139618,0.00038356,2]
[312266354,1705725045612,-160.0,0.00038368,30]
[312266355,1705725045621,-303.07035423,0.00038368,5]
[312266356,1705725045630,-5000.0,0.00038378,2]
[312266357,1705725045639,-150.0,0.000384,30]
[312266358,1705725045648,-5000.0,0.0003848,7]
[312266359,1705725045657,-282.21139657,0.000385,8]
[312266360,1705725045667,-150.0,0.000386,30]
[312266361,1705725045676,-150.0,0.000388,30]
[312266362,1705725045685,-398.113753,0.000388,2]
[312266363,1705725045694,-398.113753,0.000388,2]
[312266364,1705725045704,-150.0,0.00039,30]
[312266365,1705725045714,-1973.09856447,0.00039,7]
[312266366,1705725045723,-1000.0,0.00039,30]
[312266367,1705725045732,-151.0,0.00039,2]
[312266368,1705725045741,-151.0,0.00039,2]
[312266369,1705725045750,-2212.680224,0.00039117,2]
[312266370,1705725045760,-2212.680224,0.00039117,2]
[312266371,1705725045769,-7642.37434,0.00039117,2]
[312266372,1705725045778,-7642.37434,0.00039117,2]
[312266373,1705725045787,-151.0,0.00039117,2]
[312266374,1705725045796,-5000.0,0.00039117,7]
[312266375,1705725045805,-5000.0,0.00039131,7]
[312266376,1705725045814,-5000.0,0.00039131,7]
[312266377,1705725045823,-1000.0,0.00039135,10]
[312266378,1705725045833,-5000.0,0.00039139,7]
[312266379,1705725045842,-5000.0,0.00039139,7]
[312266380,1705725045851,-5000.0,0.00039151,7]
[312266381,1705725045860,-150.0,0.000392,30]
[312266382,1705725045869,-3499.58,0.000393,60]
[312266383,1705725045878,-157.915106,0.00039342,2]
[312266384,1705725045887,-150.74373565,0.00039375,2]
[312266385,1705725045896,-250.06576819,0.00039375,2]
[312266386,1705725045905,-150.0,0.000394,30]
[312266387,1705725045914,-200.0,0.000395,30]
[312266388,1705725045924,-200.0,0.000395,20]
[312266389,1705725045936,-200.0,0.000395,4]
[312266390,1705725045945,-150.0,0.000396,30]
[312266391,1705725045955,-250.283854,0.000396,30]
[312266392,1705725045964,-1000.0,0.00039686,10]
[312266393,1705725045973,-154.12939898,0.00039691,7]
[312266394,1705725045982,-159.57600549,0.00039706,7]
[312266395,1705725045992,-1500.0,0.00039726,7]
[312266396,1705725046002,-50000.0,0.00039757,7]
[312266397,1705725046012,-50000.0,0.00039793,7]
[312266398,1705725046021,-150.0,0.000398,30]
[312266399,1705725046030,-1000.0,0.00039865,10]
[312266400,1705725046039,-569.0,0.0003987,30]
[312266401,1705725046049,-151.0,0.00039877,4]
[312266402,1705725046058,-569.0,0.0003988,30]
[312266403,1705725046067,-154.90570146,0.00039883,7]
[312266404,1705725046077,-569.0,0.0003989,30]
[312266405,1705725046086,-2917.5891822,0.000399,90]
[312266406,1705725046095,-154.90570146,0.00039951,7]
[312266407,1705725046104,-176.1,0.0003998,30]
[312266408,1705725046114,-4037.80969129,0.0003999,4]
[312266409,1705725046123,-150.0,0.0004,30]
[312266410,1705725046132,-154.86062544,0.0004,4]
[312266411,1705725046141,-850.63217499,0.0004,4]
[312266412,1705725046150,-1279.77486636,0.0004,4]
[312266413,1705725046159,-1817.14165864,0.0004,30]
[312266414,1705725046168,-738.21745296,0.0004,2]
[312266416,1705725046177,-5000.0,0.0004,2]
[312266417,1705725046186,-515.79921932,0.0004,5]
[312266418,1705725046195,-719.54990507,0.0004,2]
[312266419,1705725046206,-18893.38699722,0.0004,15]
[312266420,1705725046215,-2717.17891951,0.0004,2]
[312266421,1705725046224,-301.95296017,0.0004,2]
[312266422,1705725046233,-16209.54378487,0.0004,10]
[312266423,1705725046242,-168.24776074,0.0004,2]
[312266424,1705725046250,-249.3420013,0.0004,2]
[312266425,1705725046259,-500.0,0.0004,10]
[312266426,1705725046269,-154.86062544,0.0004,4]
[312266427,1705725046278,-289.99999618,0.0004,4]
[312266428,1705725046287,-31972.37287041,0.0004,4]
[312266429,1705725046296,-980.54976185,0.0004,60]
[312266430,1705725046307,-762.06016183,0.0004,2]
[312266431,1705725046316,-333.0,0.0004,60]
[312266432,1705725046325,-7739.93198938,0.0004,30]
[312266433,1705725046334,-14440.27486316,0.0004,120]
[312266435,1705725046343,-1662.94216016,0.0004,60]
[312266437,1705725046353,-321000.0,0.0004,2]
[312266439,1705725046362,-200.0,0.0004,60]
[312266440,1705725046370,-1000.0,0.0004,30]
[312266442,1705725046379,-160.139618,0.0004,2]
[312266443,1705725046389,-2000.0,0.0004,32]
[312266446,1705725046398,-398.113753,0.0004,2]
[312266449,1705725046407,-398.113753,0.0004,2]
[312266450,1705725046416,-151.0,0.0004,2]
[312266452,1705725046424,-151.0,0.0004,2]
[312266454,1705725046433,-600.0,0.0004,30]
[312266456,1705725046442,-2212.680224,0.0004,2]
[312266458,1705725046452,-2212.680224,0.0004,2]
[312266460,1705725046461,-2212.680224,0.0004,2]
[312266462,1705725046470,-2212.680224,0.0004,2]
[312266464,1705725046479,-7642.37434,0.0004,2]
[312266466,1705725046487,-7642.37434,0.0004,2]
[312266468,1705725046496,-7642.37434,0.0004,2]
[312266470,1705725046505,-7642.37434,0.0004,2]
[312266472,1705725046514,-151.0,0.0004,2]
[312266474,1705725046523,-151.0,0.0004,2]
[312266478,1705725046533,-154.90570146,0.00040002,30]
[312266481,1705725046542,-2000.0,0.0004001,32]
[312266484,1705725046551,-2129.974327,0.0004002,32]
[312266485,1705725046560,-301.4874713,0.00040036,4]
[312266487,1705725046569,-159.57600549,0.00040139,30]
[312266489,1705725046578,-159.57600549,0.0004014,30]
[312266491,1705725046587,-154.12939898,0.00040192,30]
[312266493,1705725046597,-150.0,0.000402,30]
[312266496,1705725046606,-150.0,0.000404,30]
[312266499,1705725046615,-2422.0,0.00040411,7]
[312266502,1705725046624,-2000.0,0.0004044,2]
[312266505,1705725046633,-2000.0,0.0004044,2]
[312266507,1705725046642,-159.57600549,0.00040466,30]
[312266509,1705725046651,-154.90570146,0.00040477,30]
[312266512,1705725046661,-1000.0,0.00040534,10]
[312266513,1705725046670,-159.57600549,0.00040547,30]
[312266517,1705725046680,-1818.2478,0.00040598,2]
[312266520,1705725046689,-150.0,0.000406,30]
[312266522,1705725046699,-154.90570146,0.00040683,30]
[312266524,1705725046708,-154.90570146,0.00040694,30]
[312266525,1705725046717,-602.9749426,0.00040709,7]
[312266527,1705725046727,-154.90570146,0.00040732,30]
[312266529,1705725046736,-5000.0,0.00040746,7]
[312266532,1705725046745,-154.90570146,0.00040772,30]
[312266535,1705725046754,-154.90570146,0.00040778,30]
[312266538,1705725046763,-150.0,0.000408,30]
[312266541,1705725046772,-333.2863,0.00040849,7]
[312266544,1705725046782,-325.0,0.0004087,30]
[312266547,1705725046791,-325.0,0.0004088,30]
[312266550,1705725046800,-325.0,0.0004089,30]
[312266553,1705725046809,-154.90570146,0.00040947,30]
[312266555,1705725046818,-1000.0,0.0004097,10]
[312266557,1705725046827,-475.35402046,0.00040972,10]
[312266559,1705725046837,-475.35402046,0.0004098,10]
[312266562,1705725046848,-475.35402046,0.00040984,10]
[312266565,1705725046857,-475.35402046,0.00040986,10]
[312266568,1705725046866,-159.57600549,0.00040988,30]
[312266571,1705725046874,-200.0,0.00040993,10]
[312266574,1705725046884,-150.0,0.00041,30]
[312266577,1705725046893,-4465.02696089,0.00041,10]
[312266580,1705725046902,-23089.77738238,0.00041,10]
[312266583,1705725046911,-7303.20278516,0.00041,2]
[312266586,1705725046920,-156.11253268,0.00041,90]
[312266589,1705725046934,-10326.37001279,0.00041,10]
[312266591,1705725046943,-1000.0,0.00041,30]
[312266594,1705725046952,-1000.0,0.00041,30]
[312266597,1705725046961,-860.40788452,0.00041,15]
[312266600,1705725046970,-4616.41790768,0.00041,15]
[312266603,1705725046979,-661.756913,0.00041,15]
[312266606,1705725046988,-600.0,0.00041014,30]
[312266609,1705725047001,-154.90570146,0.00041081,30]
[312266612,1705725047011,-500.0,0.00041095,31]
[312266615,1705725047020,-500.0,0.00041095,31]
[312266619,1705725047030,-500.0,0.00041095,7]
[312266635,1705725047124,-500.0,0.00041095,31]
[312266637,1705725047133,-500.0,0.00041095,31]
[312266639,1705725047142,-350.98770712,0.00041095,31]
[312266641,1705725047152,-500.0,0.00041095,7]
[312266643,1705725047161,-500.0,0.00041095,31]
[312266645,1705725047171,-500.0,0.00041095,31]
[312266646,1705725047180,-624.18017065,0.00041095,31]
[312266648,1705725047190,-500.0,0.00041095,31]
[312266649,1705725047199,-500.0,0.00041095,31]
[312266650,1705725047209,-500.0,0.00041095,31]
[312266651,1705725047219,-747.09,0.00041095,31]
[312266652,1705725047228,-500.0,0.00041095,7]
[312266653,1705725047239,-500.0,0.00041095,31]
[312266654,1705725047249,-500.0,0.00041095,31]
[312266655,1705725047258,-500.0,0.00041095,31]
[312266656,1705725047267,-500.0,0.00041095,31]
[312266657,1705725047276,-405.39244157,0.00041095,31]
[312266658,1705725047286,-500.0,0.00041095,31]
[312266659,1705725047295,-500.0,0.00041095,31]
[312266660,1705725047305,-500.0,0.00041095,31]
[312266661,1705725047314,-501.04974228,0.00041095,31]
[312266662,1705725047323,-500.0,0.00041095,31]
[312266663,1705725047332,-500.0,0.00041095,31]
[312266664,1705725047342,-350.59862491,0.00041095,31]
[312266665,1705725047351,-504.34519429,0.00041095,31]
[312266666,1705725047360,-500.0,0.00041095,31]
[312266667,1705725047369,-500.0,0.00041095,31]
[312266668,1705725047378,-476.23695225,0.00041095,31]
[312266669,1705725047387,-1200.76,0.00041095,31]
[312266670,1705725047396,-500.0,0.00041095,31]
[312266671,1705725047405,-500.0,0.00041095,31]
[312266672,1705725047414,-500.0,0.00041095,31]
[312266673,1705725047423,-500.0,0.00041095,31]
[312266674,1705725047432,-576.56811558,0.00041095,31]
[312266675,1705725047441,-500.0,0.00041095,31]
[312266676,1705725047451,-602.26375247,0.00041095,31]
[312266677,1705725047460,-195.80960312,0.00041095,31]
[312266678,1705725047469,-1036.2,0.00041095,31]
[312266679,1705725047480,-500.0,0.00041095,31]
[312266680,1705725047489,-500.0,0.00041095,31]
[312266681,1705725047498,-500.0,0.00041095,31]
[312266682,1705725047507,-500.0,0.00041095,31]
[312266683,1705725047516,-500.0,0.00041095,31]
[312266684,1705725047527,-288.77792586,0.00041095,31]
[312266685,1705725047539,-500.0,0.00041095,31]
[312266686,1705725047548,-500.0,0.00041095,31]
[312266687,1705725047557,-206.47800846,0.00041095,31]
[312266688,1705725047566,-500.0,0.00041095,31]
[312266689,1705725047575,-500.0,0.00041095,31]
[312266690,1705725047585,-500.0,0.00041095,31]
[312266691,1705725047594,-500.0,0.00041095,31]
[312266692,1705725047604,-500.0,0.00041095,31]
[312266693,1705725047613,-500.0,0.00041095,31]
[312266694,1705725047623,-500.0,0.00041095,31]
[312266695,1705725047632,-500.0,0.00041095,31]
[312266696,1705725047641,-500.0,0.00041095,31]
[312266697,1705725047651,-500.0,0.00041095,31]
[312266698,1705725047660,-364.89747126,0.00041095,31]
[312266699,1705725047669,-423.84561802,0.00041095,31]
[312266700,1705725047678,-500.0,0.00041095,31]
[312266701,1705725047688,-500.0,0.00041095,14]
[312266702,1705725047697,-500.0,0.00041095,31]
[312266703,1705725047706,-500.0,0.00041095,31]
[312266704,1705725047715,-504.28651827,0.00041095,31]
[312266705,1705725047724,-259.75895275,0.00041095,31]
[312266706,1705725047733,-500.0,0.00041095,31]
[312266707,1705725047742,-500.0,0.00041095,31]
[312266708,1705725047751,-506.03749354,0.00041095,31]
[312266709,1705725047761,-579.29254274,0.00041095,31]
[312266710,1705725047770,-569.43507713,0.00041095,31]
[312266711,1705725047779,-500.0,0.00041095,31]
[312266712,1705725047789,-500.0,0.00041095,31]
[312266713,1705725047798,-421.05617268,0.00041095,31]
[312266714,1705725047808,-500.0,0.00041095,31]
[312266715,1705725047817,-500.0,0.00041095,31]
[312266716,1705725047826,-257.87098016,0.00041095,31]
[312266717,1705725047835,-500.0,0.00041095,31]
[312266718,1705725047844,-500.0,0.00041095,31]
[312266719,1705725047853,-500.0,0.00041095,31]
[312266720,1705725047863,-500.0,0.00041095,31]
[312266721,1705725047872,-57.48273658,0.00041095,31]
[312266722,1705725048031,-538.52726342,0.00041095,31]
[312266723,1705725048040,-604.4,0.00041095,31]
[312266724,1705725048050,-500.0,0.00041095,31]
[312266725,1705725048059,-602.77792774,0.00041095,31]
[312266726,1705725048069,-500.0,0.00041095,31]
[312266727,1705725048078,-502.83855992,0.00041095,31]
[312266728,1705725048088,-1000.0,0.00041095,2]
[312266729,1705725048098,-687.72,0.00041095,31]
[312266730,1705725048107,-500.0,0.00041095,31]
[312266731,1705725048116,-646.55,0.00041095,31]
[312266732,1705725048126,-687.89,0.00041095,31]
[312266733,1705725048135,-721.31,0.00041095,31]
[312266734,1705725048145,-500.0,0.00041095,31]
[312266735,1705725048154,-500.0,0.00041095,31]
[312266736,1705725048163,-521.73,0.00041095,31]
[312266737,1705725048173,-452.38875182,0.00041095,31]
[312266738,1705725048182,-500.0,0.00041095,31]
[312266739,1705725048191,-236.71701998,0.00041095,31]
[312266740,1705725048204,-263.28298002,0.00041095,31]
[312266741,1705725048213,-500.0,0.00041095,31]
[312266742,1705725048222,-512.61152445,0.00041095,31]
[312266743,1705725048232,-583.96,0.00041095,31]
[312266744,1705725048241,-500.0,0.00041095,31]
[312266745,1705725048249,-500.0,0.00041095,31]
[312266746,1705725048258,-500.0,0.00041095,14]
[312266747,1705725048268,-1244.05,0.00041095,31]
[312266748,1705725048277,-500.0,0.00041095,31]
[312266749,1705725048286,-500.0,0.00041095,31]
[312266750,1705725048295,-500.0,0.00041095,31]
[312266751,1705725048304,-500.0,0.00041095,31]
[312266752,1705725048313,-500.0,0.00041095,31]
[312266753,1705725048322,-1000.0,0.00041095,2]
[312266754,1705725048332,-415.23659953,0.00041095,31]
[312266755,1705725048341,-205.28134914,0.00041095,31]
[312266756,1705725048350,-200.22117475,0.00041095,30]
[312266757,1705725048359,-500.0,0.00041095,31]
[312266758,1705725048368,-500.0,0.00041095,31]